[Event "Titled Tuesday Blitz November 14 Early 2023"]
[White "Buchenau, Frank"]
[Black "Cueto, Jonny"]
[WhiteFideId "4604350"]
[BlackFideId "3300145"]
[WhiteElo "2419"]
[BlackElo "2226"]
[Result "1-0"]
[Round "4"]
[TimeControl "180+1"]
[Date "2023.11.14"]
[WhiteClock "0:00:04"]
[BlackClock "0:00:01"]
[Board "208"]

1. e4 {[%clk 0:02:52]}  e6 {[%clk 0:02:58]} 2. f4 {[%clk 0:02:50]}  d5 {[%clk 0:02:52]} 3. e5 {[%clk 0:02:50]}  c5 {[%clk 0:02:53]} 4. Nf3 {[%clk 0:02:50]}  Nh6 {[%clk 0:02:50]} 5. c3 {[%clk 0:02:49]}  Nc6 {[%clk 0:02:48]} 6. Na3 {[%clk 0:02:49]}  Nf5 {[%clk 0:02:48]} 7. Bd3 {[%clk 0:02:45]}  a6 {[%clk 0:02:47]} 8. O-O {[%clk 0:02:44]}  b5 {[%clk 0:02:46]} 9. Nc2 {[%clk 0:02:43]}  c4 {[%clk 0:02:41]} 10. Bxf5 {[%clk 0:02:38]}  exf5 {[%clk 0:02:41]} 11. b3 {[%clk 0:02:28]}  Bb7 {[%clk 0:02:40]} 12. d4 {[%clk 0:02:20]}  cxd3 {[%clk 0:02:18]} 13. Qxd3 {[%clk 0:02:19]}  Bc5+ {[%clk 0:02:19]} 14. Be3 {[%clk 0:02:17]}  Qb6 {[%clk 0:01:43]} 15. b4 {[%clk 0:02:07]}  Bxe3+ {[%clk 0:01:42]} 16. Qxe3 {[%clk 0:02:07]}  Qxe3+ {[%clk 0:01:32]} 17. Nxe3 {[%clk 0:02:06]}  Ne7 {[%clk 0:01:33]} 18. Nd4 {[%clk 0:02:00]}  g6 {[%clk 0:01:27]} 19. a4 {[%clk 0:01:56]}  bxa4 {[%clk 0:01:24]} 20. Rxa4 {[%clk 0:01:56]}  Rc8 {[%clk 0:01:24]} 21. Rc1 {[%clk 0:01:35]}  O-O {[%clk 0:01:23]} 22. Nb3 {[%clk 0:01:28]}  Rc6 {[%clk 0:00:25]} 23. Nc5 {[%clk 0:01:21]}  Rb8 {[%clk 0:00:26]} 24. Nc2 {[%clk 0:01:19]}  Bc8 {[%clk 0:00:23]} 25. Nd4 {[%clk 0:01:19]}  Rc7 {[%clk 0:00:20]} 26. Kf2 {[%clk 0:00:59]}  Ra8 {[%clk 0:00:21]} 27. Ke3 {[%clk 0:00:49]}  Raa7 {[%clk 0:00:21]} 28. Rca1 {[%clk 0:00:46]}  Kf8 {[%clk 0:00:20]} 29. Kd3 {[%clk 0:00:46]}  Ke8 {[%clk 0:00:20]} 30. Nb5 {[%clk 0:00:44]}  Rxc5 {[%clk 0:00:15]} 31. bxc5 {[%clk 0:00:36]}  axb5 {[%clk 0:00:07]} 32. Rxa7 {[%clk 0:00:35]}  Nc6 {[%clk 0:00:03]} 33. Rc7 {[%clk 0:00:33]}  Bd7 {[%clk 0:00:02]} 34. Ra8+ {[%clk 0:00:25]}  Ke7 {[%clk 0:00:03]} 35. Rh8 {[%clk 0:00:17]}  h5 {[%clk 0:00:02]} 36. Rb7 {[%clk 0:00:17]}  d4 {[%clk 0:00:01]} 37. cxd4 {[%clk 0:00:14]}  Nb4+ {[%clk 0:00:02]} 38. Kd2 {[%clk 0:00:13]}  Ke6 {[%clk 0:00:02]} 39. Rb6+ {[%clk 0:00:12]}  Kd5 {[%clk 0:00:02]} 40. Rd6+ {[%clk 0:00:12]}  Kc4 {[%clk 0:00:02]} 41. Rxd7 {[%clk 0:00:12]}  Nc6 {[%clk 0:00:02]} 42. d5 {[%clk 0:00:10]}  Na5 {[%clk 0:00:02]} 43. c6 {[%clk 0:00:10]}  b4 {[%clk 0:00:02]} 44. c7 {[%clk 0:00:09]}  Nb3+ {[%clk 0:00:02]} 45. Ke1 {[%clk 0:00:09]}  Nd4 {[%clk 0:00:02]} 46. c8=Q+ {[%clk 0:00:09]}  Kd3 {[%clk 0:00:02]} 47. Rb7 {[%clk 0:00:08]}  b3 {[%clk 0:00:02]} 48. Rxb3+ {[%clk 0:00:07]}  Nxb3 {[%clk 0:00:03]} 49. Qa6+ {[%clk 0:00:06]}  Ke4 {[%clk 0:00:03]} 50. d6 {[%clk 0:00:06]}  Nd4 {[%clk 0:00:03]} 51. d7 {[%clk 0:00:06]}  Ke3 {[%clk 0:00:03]} 52. d8=Q {[%clk 0:00:06]}  Nc2+ {[%clk 0:00:03]} 53. Kd1 {[%clk 0:00:05]}  Nd4 {[%clk 0:00:01]} 54. Qa7 {[%clk 0:00:04]} 1-0


[Site "https://www.chess.com"]

[Event "Titled Tuesday Blitz November 14 Early 2023"]
[White "Vila Dupla, Aurelio"]
[Black "MarijaKuznecova"]
[WhiteFideId "2203383"]
[WhiteElo "2206"]
[BlackElo "2366"]
[Result "0-1"]
[Round "4"]
[TimeControl "180+1"]
[Date "2023.11.14"]
[WhiteClock "0:00:00"]
[BlackClock "0:00:08"]
[Board "210"]

1. Nf3 {[%clk 0:03:00]}  c5 {[%clk 0:02:57]} 2. c4 {[%clk 0:03:00]}  Nc6 {[%clk 0:02:56]} 3. Nc3 {[%clk 0:02:59]}  e5 {[%clk 0:02:56]} 4. e3 {[%clk 0:02:59]}  Nf6 {[%clk 0:02:56]} 5. d4 {[%clk 0:02:59]}  e4 {[%clk 0:02:42]} 6. d5 {[%clk 0:02:58]}  exf3 {[%clk 0:02:41]} 7. dxc6 {[%clk 0:02:58]}  bxc6 {[%clk 0:02:41]} 8. Qxf3 {[%clk 0:02:55]}  Bd6 {[%clk 0:02:41]} 9. h3 {[%clk 0:02:15]}  Be5 {[%clk 0:02:38]} 10. Bd2 {[%clk 0:02:13]}  O-O {[%clk 0:02:36]} 11. Rd1 {[%clk 0:02:10]}  Rb8 {[%clk 0:02:34]} 12. b3 {[%clk 0:02:08]}  d5 {[%clk 0:02:28]} 13. Na4 {[%clk 0:01:53]}  Qe7 {[%clk 0:02:20]} 14. Bd3 {[%clk 0:01:41]}  Be6 {[%clk 0:02:02]} 15. O-O {[%clk 0:01:37]}  Nd7 {[%clk 0:02:00]} 16. cxd5 {[%clk 0:01:26]}  cxd5 {[%clk 0:01:57]} 17. Bc3 {[%clk 0:01:09]}  Bd6 {[%clk 0:01:22]} 18. Qh5 {[%clk 0:00:56]}  f5 {[%clk 0:01:15]} 19. Rfe1 {[%clk 0:00:36]}  Ne5 {[%clk 0:01:04]} 20. Bb1 {[%clk 0:00:18]}  Bf7 {[%clk 0:00:49]} 21. Qe2 {[%clk 0:00:17]}  Qe6 {[%clk 0:00:39]} 22. Qb2 {[%clk 0:00:13]}  Rfe8 {[%clk 0:00:37]} 23. f4 {[%clk 0:00:12]}  Ng6 {[%clk 0:00:27]} 24. Bxg7 {[%clk 0:00:11]}  Nh4 {[%clk 0:00:26]} 25. Bf6 {[%clk 0:00:08]}  Ng6 {[%clk 0:00:22]} 26. Bg5 {[%clk 0:00:03]}  Bf8 {[%clk 0:00:16]} 27. Nc3 {[%clk 0:00:03]}  Bg7 {[%clk 0:00:16]} 28. Qc2 {[%clk 0:00:03]}  Qc6 {[%clk 0:00:11]} 29. Ne2 {[%clk 0:00:02]}  Rxe3 {[%clk 0:00:09]} 30. Nd4 {[%clk 0:00:00]}  Bxd4 {[%clk 0:00:08]} 0-1


[Site "https://www.chess.com"]

[Event "Titled Tuesday Blitz November 14 Early 2023"]
[White "iJueles"]
[Black "Fernandez Sanchez, Mario Andres"]
[BlackFideId "6501621"]
[WhiteElo "2351"]
[BlackElo "2199"]
[Result "1-0"]
[Round "4"]
[TimeControl "180+1"]
[Date "2023.11.14"]
[WhiteClock "0:00:33"]
[BlackClock "0:00:00"]
[Board "211"]

1. d4 {[%clk 0:03:00]}  d5 {[%clk 0:02:54]} 2. c4 {[%clk 0:02:59]}  c6 {[%clk 0:02:53]} 3. Nf3 {[%clk 0:02:56]}  Nf6 {[%clk 0:02:54]} 4. Qb3 {[%clk 0:02:55]}  g6 {[%clk 0:02:53]} 5. g3 {[%clk 0:02:54]}  Bg7 {[%clk 0:02:53]} 6. Bg2 {[%clk 0:02:54]}  O-O {[%clk 0:02:53]} 7. O-O {[%clk 0:02:54]}  Re8 {[%clk 0:02:49]} 8. Bf4 {[%clk 0:02:52]}  e6 {[%clk 0:02:42]} 9. Nbd2 {[%clk 0:02:51]}  Nbd7 {[%clk 0:02:41]} 10. Rac1 {[%clk 0:02:50]}  Qb6 {[%clk 0:02:41]} 11. c5 {[%clk 0:02:49]}  Qxb3 {[%clk 0:02:41]} 12. Nxb3 {[%clk 0:02:49]}  h6 {[%clk 0:02:30]} 13. Bd6 {[%clk 0:02:45]}  Ne4 {[%clk 0:02:29]} 14. Ne5 {[%clk 0:02:35]}  Nxd6 {[%clk 0:02:22]} 15. Nxd7 {[%clk 0:02:33]}  Nc4 {[%clk 0:02:18]} 16. Ne5 {[%clk 0:02:26]}  Nxe5 {[%clk 0:02:17]} 17. dxe5 {[%clk 0:02:26]}  Bxe5 {[%clk 0:02:18]} 18. Rc2 {[%clk 0:02:26]}  a5 {[%clk 0:02:13]} 19. a4 {[%clk 0:02:22]}  Bg7 {[%clk 0:02:11]} 20. Rd1 {[%clk 0:02:20]}  e5 {[%clk 0:02:09]} 21. e4 {[%clk 0:02:18]}  d4 {[%clk 0:02:08]} 22. Nd2 {[%clk 0:02:19]}  Be6 {[%clk 0:02:06]} 23. Nc4 {[%clk 0:02:18]}  Bxc4 {[%clk 0:02:03]} 24. Rxc4 {[%clk 0:02:19]}  Red8 {[%clk 0:01:59]} 25. Rd3 {[%clk 0:02:19]}  Rd7 {[%clk 0:01:58]} 26. Kf1 {[%clk 0:02:18]}  f6 {[%clk 0:01:51]} 27. Ke2 {[%clk 0:02:18]}  Kf7 {[%clk 0:01:51]} 28. Bh3 {[%clk 0:02:15]}  Rc7 {[%clk 0:01:47]} 29. f4 {[%clk 0:02:10]}  Rb8 {[%clk 0:01:43]} 30. Rb3 {[%clk 0:02:08]}  Ke7 {[%clk 0:01:38]} 31. Kd3 {[%clk 0:02:06]}  g5 {[%clk 0:01:36]} 32. fxe5 {[%clk 0:02:03]}  fxe5 {[%clk 0:01:35]} 33. Bf5 {[%clk 0:02:04]}  Bf6 {[%clk 0:01:26]} 34. g4 {[%clk 0:02:01]}  Kd8 {[%clk 0:01:22]} 35. Rc2 {[%clk 0:01:57]}  Be7 {[%clk 0:01:22]} 36. Kc4 {[%clk 0:01:56]}  b5+ {[%clk 0:01:16]} 37. axb5 {[%clk 0:01:45]}  cxb5+ {[%clk 0:01:12]} 38. Rxb5 {[%clk 0:01:46]}  Rxb5 {[%clk 0:01:06]} 39. Kxb5 {[%clk 0:01:43]}  Ra7 {[%clk 0:01:05]} 40. Kc4 {[%clk 0:01:36]}  Kc7 {[%clk 0:01:02]} 41. Kd5 {[%clk 0:01:37]}  Bf6 {[%clk 0:01:01]} 42. c6 {[%clk 0:01:32]}  Ra6 {[%clk 0:00:58]} 43. Bd7 {[%clk 0:01:31]}  Rb6 {[%clk 0:00:57]} 44. Kc4 {[%clk 0:01:29]}  Rb4+ {[%clk 0:00:56]} 45. Kd5 {[%clk 0:01:25]}  Rb5+ {[%clk 0:00:55]} 46. Ke6 {[%clk 0:01:25]}  Bg7 {[%clk 0:00:54]} 47. Kf7 {[%clk 0:01:25]}  Bh8 {[%clk 0:00:52]} 48. Kg6 {[%clk 0:01:25]}  Rb4 {[%clk 0:00:44]} 49. Kxh6 {[%clk 0:01:20]}  Bf6 {[%clk 0:00:41]} 50. Kg6 {[%clk 0:01:19]}  Be7 {[%clk 0:00:38]} 51. Kf5 {[%clk 0:01:19]}  Bd6 {[%clk 0:00:29]} 52. Kxg5 {[%clk 0:01:18]}  d3 {[%clk 0:00:29]} 53. Rd2 {[%clk 0:01:18]}  Rd4 {[%clk 0:00:29]} 54. Kf5 {[%clk 0:01:16]}  a4 {[%clk 0:00:19]} 55. g5 {[%clk 0:01:15]}  Bb4 {[%clk 0:00:19]} 56. Rd1 {[%clk 0:01:15]}  d2 {[%clk 0:00:18]} 57. Kxe5 {[%clk 0:01:12]}  Rd3 {[%clk 0:00:17]} 58. g6 {[%clk 0:01:11]}  a3 {[%clk 0:00:15]} 59. bxa3 {[%clk 0:01:11]}  Bxa3 {[%clk 0:00:15]} 60. g7 {[%clk 0:01:09]}  Bb2+ {[%clk 0:00:15]} 61. Kf4 {[%clk 0:01:07]}  Bxg7 {[%clk 0:00:16]} 62. h4 {[%clk 0:01:04]}  Bh6+ {[%clk 0:00:15]} 63. Kf5 {[%clk 0:00:58]}  Re3 {[%clk 0:00:12]} 64. Rxd2 {[%clk 0:00:37]}  Rf3+ {[%clk 0:00:10]} 65. Kg4 {[%clk 0:00:38]}  Rf4+ {[%clk 0:00:02]} 66. Kg3 {[%clk 0:00:38]}  Rxe4 {[%clk 0:00:02]} 67. Rf2 {[%clk 0:00:34]}  Bf8 {[%clk 0:00:00]} 68. Rxf8 {[%clk 0:00:33]} 1-0


[Site "https://www.chess.com"]

[Event "Titled Tuesday Blitz November 14 Early 2023"]
[White "Travadon, Loic"]
[Black "Mestnikov, Aisen"]
[WhiteFideId "26092131"]
[BlackFideId "34130117"]
[WhiteElo "2179"]
[BlackElo "2317"]
[Result "0-1"]
[Round "4"]
[TimeControl "180+1"]
[Date "2023.11.14"]
[WhiteClock "0:00:59"]
[BlackClock "0:01:57"]
[Board "213"]

1. e4 {[%clk 0:03:00]}  e5 {[%clk 0:02:59]} 2. Nc3 {[%clk 0:02:59]}  Nc6 {[%clk 0:03:00]} 3. g3 {[%clk 0:02:58]}  g6 {[%clk 0:03:00]} 4. Bg2 {[%clk 0:02:57]}  Bg7 {[%clk 0:03:01]} 5. Nge2 {[%clk 0:02:55]}  Nge7 {[%clk 0:03:02]} 6. d3 {[%clk 0:02:55]}  O-O {[%clk 0:03:03]} 7. O-O {[%clk 0:02:55]}  d6 {[%clk 0:03:03]} 8. f4 {[%clk 0:02:54]}  f5 {[%clk 0:03:04]} 9. Kh1 {[%clk 0:02:45]}  a6 {[%clk 0:03:04]} 10. g4 {[%clk 0:02:31]}  fxg4 {[%clk 0:03:03]} 11. Ng3 {[%clk 0:02:30]}  h5 {[%clk 0:03:03]} 12. f5 {[%clk 0:02:29]}  h4 {[%clk 0:03:03]} 13. Qxg4 {[%clk 0:02:11]}  hxg3 {[%clk 0:03:03]} 14. hxg3 {[%clk 0:02:11]}  gxf5 {[%clk 0:03:03]} 15. exf5 {[%clk 0:02:03]}  Bxf5 {[%clk 0:02:57]} 16. Rxf5 {[%clk 0:01:57]}  Rxf5 {[%clk 0:02:56]} 17. Bd5+ {[%clk 0:01:57]}  Nxd5 {[%clk 0:02:52]} 18. Qxf5 {[%clk 0:01:57]}  Nxc3 {[%clk 0:02:46]} 19. Qe6+ {[%clk 0:01:50]}  Kf8 {[%clk 0:02:45]} 20. bxc3 {[%clk 0:01:51]}  Qf6 {[%clk 0:02:45]} 21. Qg4 {[%clk 0:01:50]}  Qf1+ {[%clk 0:02:38]} 22. Kh2 {[%clk 0:01:48]}  Qf2+ {[%clk 0:02:29]} 23. Kh1 {[%clk 0:01:48]}  e4 {[%clk 0:02:08]} 24. dxe4 {[%clk 0:01:42]}  Ne5 {[%clk 0:02:07]} 25. Qf4+ {[%clk 0:01:31]}  Qxf4 {[%clk 0:02:07]} 26. gxf4 {[%clk 0:01:29]}  Ng4 {[%clk 0:02:07]} 27. Kg2 {[%clk 0:01:25]}  Bxc3 {[%clk 0:02:07]} 28. Rb1 {[%clk 0:01:25]}  b5 {[%clk 0:02:07]} 29. Kf3 {[%clk 0:01:25]}  Nf6 {[%clk 0:02:07]} 30. Be3 {[%clk 0:01:18]}  Re8 {[%clk 0:02:06]} 31. Rb3 {[%clk 0:01:14]}  Nxe4 {[%clk 0:02:05]} 32. a4 {[%clk 0:01:09]}  bxa4 {[%clk 0:02:04]} 33. Ra3 {[%clk 0:01:09]}  a5 {[%clk 0:02:00]} 34. Rxa4 {[%clk 0:01:09]}  Bb4 {[%clk 0:02:00]} 35. Ra1 {[%clk 0:01:07]}  Nd2+ {[%clk 0:01:59]} 36. Bxd2 {[%clk 0:01:07]}  Bxd2 {[%clk 0:02:00]} 37. Rh1 {[%clk 0:01:06]}  Re3+ {[%clk 0:02:00]} 38. Kg4 {[%clk 0:01:06]}  a4 {[%clk 0:02:00]} 39. Kf5 {[%clk 0:01:06]}  a3 {[%clk 0:01:59]} 40. Rh7 {[%clk 0:01:02]}  a2 {[%clk 0:01:57]} 41. Rh8+ {[%clk 0:00:59]}  Kg7 {[%clk 0:01:57]} 0-1


[Site "https://www.chess.com"]

[Event "Titled Tuesday Blitz November 14 Early 2023"]
[White "Malikova777"]
[Black "Ismayilova, Khanim"]
[BlackFideId "13429019"]
[WhiteElo "2304"]
[BlackElo "2145"]
[Result "0-1"]
[Round "4"]
[TimeControl "180+1"]
[Date "2023.11.14"]
[WhiteClock "0:00:03"]
[BlackClock "0:00:17"]
[Board "216"]

1. d4 {[%clk 0:02:59]}  d5 {[%clk 0:02:59]} 2. c4 {[%clk 0:02:59]}  e6 {[%clk 0:02:59]} 3. Nc3 {[%clk 0:02:58]}  Nf6 {[%clk 0:03:00]} 4. cxd5 {[%clk 0:02:59]}  exd5 {[%clk 0:03:00]} 5. Bg5 {[%clk 0:03:00]}  Be7 {[%clk 0:02:58]} 6. e3 {[%clk 0:02:59]}  c6 {[%clk 0:02:58]} 7. Qc2 {[%clk 0:02:59]}  O-O {[%clk 0:02:58]} 8. Bd3 {[%clk 0:02:59]}  Nbd7 {[%clk 0:02:55]} 9. Nf3 {[%clk 0:02:59]}  Re8 {[%clk 0:02:56]} 10. O-O {[%clk 0:02:59]}  Nf8 {[%clk 0:02:56]} 11. Bxf6 {[%clk 0:02:56]}  Bxf6 {[%clk 0:02:56]} 12. b4 {[%clk 0:02:57]}  Bg4 {[%clk 0:02:53]} 13. Nd2 {[%clk 0:02:56]}  h6 {[%clk 0:02:51]} 14. b5 {[%clk 0:02:54]}  Rc8 {[%clk 0:02:41]} 15. bxc6 {[%clk 0:02:54]}  bxc6 {[%clk 0:02:34]} 16. Na4 {[%clk 0:02:52]}  Ne6 {[%clk 0:02:29]} 17. Nb3 {[%clk 0:02:49]}  Qd6 {[%clk 0:02:17]} 18. h3 {[%clk 0:02:37]}  Bh5 {[%clk 0:02:05]} 19. Nbc5 {[%clk 0:02:08]}  Ng5 {[%clk 0:02:01]} 20. Rab1 {[%clk 0:01:53]}  Bf3 {[%clk 0:01:39]} 21. Bf5 {[%clk 0:00:59]}  Rb8 {[%clk 0:01:03]} 22. h4 {[%clk 0:00:50]}  Be4 {[%clk 0:00:58]} 23. Nxe4 {[%clk 0:00:41]}  Nxe4 {[%clk 0:00:58]} 24. Bxe4 {[%clk 0:00:31]}  Rxe4 {[%clk 0:00:38]} 25. g3 {[%clk 0:00:27]}  Bxh4 {[%clk 0:00:34]} 26. Rxb8+ {[%clk 0:00:25]}  Qxb8 {[%clk 0:00:33]} 27. Qxc6 {[%clk 0:00:07]}  Bxg3 {[%clk 0:00:28]} 28. Qxd5 {[%clk 0:00:07]}  Bh2+ {[%clk 0:00:21]} 29. Kh1 {[%clk 0:00:07]}  Rh4 {[%clk 0:00:21]} 30. f3 {[%clk 0:00:05]}  Bg1+ {[%clk 0:00:17]} 31. Kxg1 {[%clk 0:00:03]}  Qh2# {[%clk 0:00:17]} 0-1


[Site "https://www.chess.com"]

[Event "Titled Tuesday Blitz November 14 Early 2023"]
[White "Larina, Maria"]
[Black "Petersson, Kjell"]
[WhiteFideId "24113182"]
[BlackFideId "1705148"]
[WhiteElo "2294"]
[BlackElo "2126"]
[Result "1-0"]
[Round "4"]
[TimeControl "180+1"]
[Date "2023.11.14"]
[WhiteClock "0:00:09"]
[BlackClock "0:00:14"]
[Board "218"]

1. e4 {[%clk 0:03:00]}  c5 {[%clk 0:03:00]} 2. Nc3 {[%clk 0:03:00]}  g6 {[%clk 0:02:59]} 3. g3 {[%clk 0:03:00]}  Bg7 {[%clk 0:02:59]} 4. Bg2 {[%clk 0:03:00]}  Nc6 {[%clk 0:02:59]} 5. d3 {[%clk 0:03:01]}  d6 {[%clk 0:02:56]} 6. Be3 {[%clk 0:03:01]}  Bd7 {[%clk 0:02:46]} 7. Qd2 {[%clk 0:02:59]}  h5 {[%clk 0:02:37]} 8. h3 {[%clk 0:02:58]}  Rb8 {[%clk 0:02:32]} 9. Nf3 {[%clk 0:02:54]}  b5 {[%clk 0:02:24]} 10. O-O {[%clk 0:02:52]}  e6 {[%clk 0:02:19]} 11. Ng5 {[%clk 0:02:38]}  Nd4 {[%clk 0:02:16]} 12. f4 {[%clk 0:02:31]}  Ne7 {[%clk 0:02:10]} 13. Nd1 {[%clk 0:02:24]}  d5 {[%clk 0:01:45]} 14. c3 {[%clk 0:02:20]}  Ndc6 {[%clk 0:01:38]} 15. Bxc5 {[%clk 0:02:13]}  O-O {[%clk 0:01:33]} 16. exd5 {[%clk 0:01:31]}  exd5 {[%clk 0:01:32]} 17. d4 {[%clk 0:01:24]}  f6 {[%clk 0:01:26]} 18. Nf3 {[%clk 0:01:22]}  Qc8 {[%clk 0:01:25]} 19. Kh2 {[%clk 0:01:20]}  Re8 {[%clk 0:01:20]} 20. Re1 {[%clk 0:01:19]}  a6 {[%clk 0:01:10]} 21. Ne3 {[%clk 0:01:18]}  Be6 {[%clk 0:01:03]} 22. b4 {[%clk 0:00:59]}  Bh6 {[%clk 0:00:58]} 23. a4 {[%clk 0:00:55]}  Nf5 {[%clk 0:00:54]} 24. Nxf5 {[%clk 0:00:51]}  Bxf5 {[%clk 0:00:55]} 25. Nh4 {[%clk 0:00:51]}  Qd7 {[%clk 0:00:43]} 26. axb5 {[%clk 0:00:47]}  axb5 {[%clk 0:00:43]} 27. Nxf5 {[%clk 0:00:31]}  Qxf5 {[%clk 0:00:43]} 28. Ra6 {[%clk 0:00:30]}  Qd7 {[%clk 0:00:38]} 29. Raa1 {[%clk 0:00:17]}  h4 {[%clk 0:00:36]} 30. g4 {[%clk 0:00:16]}  Rxe1 {[%clk 0:00:31]} 31. Rxe1 {[%clk 0:00:15]}  Re8 {[%clk 0:00:32]} 32. Rxe8+ {[%clk 0:00:11]}  Qxe8 {[%clk 0:00:33]} 33. g5 {[%clk 0:00:10]}  fxg5 {[%clk 0:00:30]} 34. fxg5 {[%clk 0:00:11]}  Bg7 {[%clk 0:00:24]} 35. Bxd5+ {[%clk 0:00:11]}  Kh7 {[%clk 0:00:24]} 36. Qf2 {[%clk 0:00:09]}  Qb8+ {[%clk 0:00:20]} 37. Kh1 {[%clk 0:00:09]}  Qc8 {[%clk 0:00:17]} 38. Qxh4+ {[%clk 0:00:08]}  Bh6 {[%clk 0:00:14]} 39. Qxh6# {[%clk 0:00:09]} 1-0


[Site "https://www.chess.com"]

[Event "Titled Tuesday Blitz November 14 Early 2023"]
[White "Fernandez Hernandez, Gerardo"]
[Black "Buscar, Michael"]
[WhiteFideId "2207400"]
[BlackFideId "2603616"]
[WhiteElo "2117"]
[BlackElo "2280"]
[Result "0-1"]
[Round "4"]
[TimeControl "180+1"]
[Date "2023.11.14"]
[WhiteClock "0:00:00"]
[BlackClock "0:00:19"]
[Board "220"]

1. e4 {[%clk 0:03:00]}  c5 {[%clk 0:02:59]} 2. d3 {[%clk 0:03:00]}  d5 {[%clk 0:02:58]} 3. g3 {[%clk 0:03:01]}  dxe4 {[%clk 0:02:58]} 4. dxe4 {[%clk 0:03:01]}  Qxd1+ {[%clk 0:02:58]} 5. Kxd1 {[%clk 0:03:02]}  b6 {[%clk 0:02:55]} 6. Be3 {[%clk 0:02:59]}  Ba6 {[%clk 0:02:54]} 7. Bxa6 {[%clk 0:02:57]}  Nxa6 {[%clk 0:02:55]} 8. c3 {[%clk 0:02:58]}  O-O-O+ {[%clk 0:02:54]} 9. Kc2 {[%clk 0:02:58]}  Nf6 {[%clk 0:02:54]} 10. f3 {[%clk 0:02:55]}  h5 {[%clk 0:02:53]} 11. h4 {[%clk 0:02:51]}  g6 {[%clk 0:02:47]} 12. Nd2 {[%clk 0:02:48]}  Ne8 {[%clk 0:02:44]} 13. Nh3 {[%clk 0:02:41]}  f6 {[%clk 0:02:28]} 14. Nf4 {[%clk 0:02:37]}  Rg8 {[%clk 0:02:19]} 15. Nc4 {[%clk 0:02:05]}  Nac7 {[%clk 0:02:04]} 16. Rad1 {[%clk 0:01:44]}  Rxd1 {[%clk 0:01:53]} 17. Rxd1 {[%clk 0:01:42]}  Bh6 {[%clk 0:01:52]} 18. Nd5 {[%clk 0:01:30]}  Nxd5 {[%clk 0:01:49]} 19. Rxd5 {[%clk 0:01:21]}  Bxe3 {[%clk 0:01:44]} 20. Nxe3 {[%clk 0:01:22]}  Nc7 {[%clk 0:01:42]} 21. Rd2 {[%clk 0:01:18]}  Rd8 {[%clk 0:01:35]} 22. Rxd8+ {[%clk 0:01:13]}  Kxd8 {[%clk 0:01:36]} 23. Kd3 {[%clk 0:01:11]}  g5 {[%clk 0:01:29]} 24. Nf5 {[%clk 0:01:06]}  Ne6 {[%clk 0:01:26]} 25. Ke3 {[%clk 0:01:02]}  Ke8 {[%clk 0:01:23]} 26. f4 {[%clk 0:00:55]}  gxh4 {[%clk 0:01:20]} 27. gxh4 {[%clk 0:00:53]}  Kf7 {[%clk 0:01:21]} 28. Ng3 {[%clk 0:00:53]}  Ng7 {[%clk 0:01:20]} 29. f5 {[%clk 0:00:45]}  Ke8 {[%clk 0:01:11]} 30. Kd3 {[%clk 0:00:44]}  Kd7 {[%clk 0:01:11]} 31. Kc4 {[%clk 0:00:43]}  Kc6 {[%clk 0:01:11]} 32. a4 {[%clk 0:00:42]}  a6 {[%clk 0:01:10]} 33. b3 {[%clk 0:00:34]}  Kd6 {[%clk 0:01:05]} 34. b4 {[%clk 0:00:28]}  Kc6 {[%clk 0:00:39]} 35. bxc5 {[%clk 0:00:20]}  bxc5 {[%clk 0:00:39]} 36. Kd3 {[%clk 0:00:13]}  Kb6 {[%clk 0:00:36]} 37. Kc4 {[%clk 0:00:12]}  Kc6 {[%clk 0:00:36]} 38. a5 {[%clk 0:00:11]}  Kd6 {[%clk 0:00:34]} 39. Kd3 {[%clk 0:00:09]}  Ke5 {[%clk 0:00:31]} 40. Ke3 {[%clk 0:00:09]}  e6 {[%clk 0:00:30]} 41. fxe6 {[%clk 0:00:07]}  Kxe6 {[%clk 0:00:30]} 42. Kf4 {[%clk 0:00:06]}  Kd6 {[%clk 0:00:29]} 43. c4 {[%clk 0:00:06]}  Ke6 {[%clk 0:00:27]} 44. Nf5 {[%clk 0:00:02]}  Ne8 {[%clk 0:00:22]} 45. Ne3 {[%clk 0:00:00]}  Nd6 {[%clk 0:00:19]} 0-1


[Site "https://www.chess.com"]

[Event "Titled Tuesday Blitz November 14 Early 2023"]
[White "Smirnov, Timofey"]
[Black "Novikova, Anna"]
[WhiteFideId "24176427"]
[BlackFideId "4146794"]
[WhiteElo "2084"]
[BlackElo "2267"]
[Result "1-0"]
[Round "4"]
[TimeControl "180+1"]
[Date "2023.11.14"]
[WhiteClock "0:00:09"]
[BlackClock "0:00:51"]
[Board "222"]

1. d4 {[%clk 0:03:00]}  Nf6 {[%clk 0:02:47]} 2. Bf4 {[%clk 0:03:00]}  g6 {[%clk 0:02:48]} 3. Nc3 {[%clk 0:02:59]}  Bg7 {[%clk 0:02:46]} 4. e4 {[%clk 0:02:59]}  d6 {[%clk 0:02:45]} 5. e5 {[%clk 0:02:57]}  dxe5 {[%clk 0:02:35]} 6. dxe5 {[%clk 0:02:58]}  Qxd1+ {[%clk 0:02:35]} 7. Rxd1 {[%clk 0:02:58]}  Nh5 {[%clk 0:02:36]} 8. Nd5 {[%clk 0:02:59]}  O-O {[%clk 0:02:33]} 9. Bc1 {[%clk 0:02:53]}  Nc6 {[%clk 0:02:26]} 10. Be2 {[%clk 0:02:35]}  Bxe5 {[%clk 0:01:50]} 11. Bxh5 {[%clk 0:02:32]}  gxh5 {[%clk 0:01:50]} 12. Nf3 {[%clk 0:02:30]}  Bd6 {[%clk 0:01:51]} 13. O-O {[%clk 0:02:22]}  Bg4 {[%clk 0:01:50]} 14. Rd3 {[%clk 0:02:09]}  Ne5 {[%clk 0:01:49]} 15. Nxe5 {[%clk 0:01:58]}  Bxe5 {[%clk 0:01:48]} 16. Nxe7+ {[%clk 0:01:35]}  Kg7 {[%clk 0:01:47]} 17. h3 {[%clk 0:01:26]}  Be6 {[%clk 0:01:45]} 18. f4 {[%clk 0:00:51]}  Bf6 {[%clk 0:01:44]} 19. Nd5 {[%clk 0:00:42]}  Bxd5 {[%clk 0:01:43]} 20. Rxd5 {[%clk 0:00:41]}  h4 {[%clk 0:01:44]} 21. Rfd1 {[%clk 0:00:31]}  Rad8 {[%clk 0:01:43]} 22. Rxd8 {[%clk 0:00:31]}  Rxd8 {[%clk 0:01:44]} 23. Rxd8 {[%clk 0:00:26]}  Bxd8 {[%clk 0:01:45]} 24. Kf2 {[%clk 0:00:19]}  f5 {[%clk 0:01:41]} 25. Ke3 {[%clk 0:00:16]}  Kf6 {[%clk 0:01:20]} 26. c4 {[%clk 0:00:15]}  Ke6 {[%clk 0:01:21]} 27. b3 {[%clk 0:00:13]}  c5 {[%clk 0:01:18]} 28. Bb2 {[%clk 0:00:13]}  a5 {[%clk 0:01:13]} 29. Bc3 {[%clk 0:00:12]}  Bc7 {[%clk 0:01:11]} 30. Kf3 {[%clk 0:00:12]}  Kd6 {[%clk 0:01:08]} 31. Be5+ {[%clk 0:00:11]}  Kc6 {[%clk 0:01:08]} 32. Bf6 {[%clk 0:00:10]}  b5 {[%clk 0:01:03]} 33. cxb5+ {[%clk 0:00:07]}  Kxb5 {[%clk 0:01:04]} 34. Bxh4 {[%clk 0:00:08]}  c4 {[%clk 0:01:05]} 35. bxc4+ {[%clk 0:00:08]}  Kxc4 {[%clk 0:01:06]} 36. Be7 {[%clk 0:00:06]}  a4 {[%clk 0:01:05]} 37. g4 {[%clk 0:00:04]}  fxg4+ {[%clk 0:01:02]} 38. hxg4 {[%clk 0:00:05]}  Kc3 {[%clk 0:01:02]} 39. f5 {[%clk 0:00:05]}  Kb2 {[%clk 0:01:00]} 40. a3 {[%clk 0:00:05]}  Kb3 {[%clk 0:00:55]} 41. f6 {[%clk 0:00:05]}  Be5 {[%clk 0:00:45]} 42. f7 {[%clk 0:00:05]}  Bg7 {[%clk 0:00:46]} 43. f8=Q {[%clk 0:00:06]}  Bxf8 {[%clk 0:00:46]} 44. Bxf8 {[%clk 0:00:07]}  Ka2 {[%clk 0:00:46]} 45. Kf4 {[%clk 0:00:07]}  Kb3 {[%clk 0:00:47]} 46. Kg5 {[%clk 0:00:07]}  Ka2 {[%clk 0:00:48]} 47. Kh6 {[%clk 0:00:07]}  Kb3 {[%clk 0:00:49]} 48. Kxh7 {[%clk 0:00:08]}  Ka2 {[%clk 0:00:50]} 49. g5 {[%clk 0:00:08]}  Kb3 {[%clk 0:00:51]} 50. g6 {[%clk 0:00:09]} 1-0


[Site "https://www.chess.com"]